bitfinex/quotes_ETHUSD_20251024
["timestamp","ask_amount","ask_price","bid_price","bid_amount"]
[1761307026170,0.45112836,3945.9,3945.5,2.53451517]
[1761307026551,0.1399,3945.8,3945.5,2.53451517]
[1761307027706,0.1399,3945.8,3945.6,2.53446317]
[1761307028279,0.1399,3945.8,3945.1,2.96018809]
[1761307028280,0.1399,3945.8,3945.7,2.53440454]
[1761307028477,0.1399,3945.8,3945.5,2.53446938]
[1761307028681,0.1399,3945.8,3945.1,2.96018809]
[1761307028882,0.1399,3945.8,3945.6,2.53441855]
[1761307029231,0.1399,3945.8,3945.7,2.53440454]
[1761307029501,0.001,3945.9,3945.1,2.96018809]
[1761307029502,0.001,3945.9,3945.8,2.53434031]
[1761307029864,0.1409,3945.9,3945.8,2.53434031]
[1761307030812,0.2673,3945.9,3945.8,2.53434031]
[1761307032193,0.2665,3945.9,3945.8,2.53434031]
[1761307032815,0.1266,3945.9,3945.8,2.53434031]
[1761307033011,0.0002,3945.9,3945.8,3.08400021]
[1761307033176,0.0002,3945.9,3945.8,7.06226589]
[1761307033508,0.0002,3945.9,3945.8,8.74386589]
[1761307033706,0.0002,3945.9,3945.8,9.25074589]
[1761307034295,0.001,3946.3,3946.2,3.04096342]
[1761307034503,0.001,3946.3,3946.2,8.60624544]
[1761307034805,0.001,3946.3,3946.2,9.16044544]
[1761307035886,0.001,3946.3,3946.2,9.41394544]
[1761307037096,0.001,3946.3,3946.2,9.16044544]
[1761307039504,0.001,3946.3,3946.2,8.73264544]
[1761307040716,0.143,3946.3,3946.2,2.53408342]
[1761307042039,0.001,3946.3,3946.2,2.53408342]
[1761307042538,0.143,3946.3,3946.2,2.53408342]
[1761307042834,0.143,3946.3,3946.1,2.5341448]
[1761307043333,0.143,3946.3,3946.2,2.53408342]
[1761307046413,0.001,3946.3,3946.2,2.53408342]
[1761307046618,0.143,3946.3,3946.2,2.53408342]
[1761307047134,0.143,3946.3,3946.0,2.53418121]
[1761307047501,0.143,3946.3,3945.2,1.5552]
[1761307047700,0.2134,3946.2,3945.9,2.53427476]
[1761307047935,0.2134,3946.2,3946.0,2.53418751]
[1761307048136,0.1428,3946.1,3946.0,2.53418751]
[1761307049410,0.1428,3946.1,3945.9,2.53425354]
[1761307049806,0.1428,3946.1,3945.0,2.06208]
[1761307049807,0.1428,3946.1,3945.7,2.53439453]
[1761307050004,0.1428,3946.1,3945.8,2.53430661]
[1761307050319,0.1428,3946.1,3945.7,2.53439675]
[1761307050517,0.1428,3946.1,3945.7,2.53435461]
[1761307050735,0.1264,3945.8,3945.7,2.53435461]
[1761307051105,0.2692,3945.8,3945.7,2.53435461]
[1761307051829,0.1264,3945.8,3945.7,2.53435461]
[1761307052646,0.1264,3945.8,3945.7,6.08482029]
[1761307052843,0.1264,3946.0,3945.9,2.53427608]
[1761307054148,0.001,3946.3,3946.2,2.53408342]
[1761307054647,0.001,3946.3,3945.6,0.1264]
[1761307054648,0.2709,3946.3,3946.1,2.53413368]
[1761307054958,0.2709,3946.3,3946.2,2.53408342]
[1761307056118,0.1266,3946.3,3946.2,2.53408342]
[1761307056721,0.1266,3946.3,3945.6,0.1264]
[1761307056921,0.1266,3946.3,3944.4,6.08569354]
[1761307056922,0.2324,3945.7,3944.4,6.08569354]
[1761307057135,0.2324,3945.7,3944.9,1.5552]
[1761307057857,0.2324,3945.7,3945.6,2.53446877]
[1761307058158,0.3563,3945.7,3945.6,2.53446877]
[1761307060327,0.2313,3946.0,3945.9,2.53424908]
[1761307060769,0.0002,3946.3,3946.0,2.53420617]
[1761307060951,0.1252,3946.3,3946.0,2.53420617]
[1761307061257,0.0002,3946.3,3946.0,2.53420617]
[1761307061637,0.1252,3946.3,3946.0,2.53420617]
[1761307062145,0.1252,3946.3,3945.6,3.55046568]
[1761307062327,0.0002,3946.3,3946.2,2.53408342]
[1761307063144,0.0002,3946.3,3946.2,6.0845491]
[1761307063356,0.0002,3946.3,3946.2,6.5442491]
[1761307063873,0.0002,3946.3,3946.2,8.0994491]
[1761307064055,0.0002,3946.3,3946.2,9.66969332]
[1761307066873,0.0002,3946.3,3946.2,9.79609332]
[1761307067372,0.0002,3946.3,3946.2,9.33639332]
[1761307067738,0.0002,3946.3,3946.2,8.2730291]
[1761307068043,0.0002,3946.3,3946.2,7.7661491]
[1761307068237,0.0002,3946.3,3946.2,7.6397491]
[1761307068550,0.3358,3946.3,3945.8,3.67686568]
[1761307068738,0.3358,3946.3,3946.1,2.53408695]
[1761307068935,0.3358,3946.3,3946.2,2.53408342]
[1761307069351,0.4622,3946.3,3946.2,2.53408342]
[1761307075470,0.1266,3946.3,3946.2,2.53408342]
[1761307075822,0.0002,3946.3,3946.2,6.5294491]
[1761307076493,0.0002,3946.3,3946.2,6.0845491]
[1761307077568,0.1077,3946.3,3946.2,2.53408342]
[1761307077791,0.0002,3946.3,3946.2,2.53408342]
[1761307079702,0.0002,3946.3,3946.2,6.0845491]
[1761307080205,0.1258,3946.4,3946.3,2.5340192]
[1761307080811,0.1258,3946.4,3946.1,0.002]
[1761307081113,0.1075,3946.3,3946.1,0.002]
[1761307081275,0.1264,3946.2,3946.1,0.002]
[1761307081809,0.2339,3946.2,3946.1,0.002]
[1761307084203,0.2339,3946.2,3946.1,2.53614763]
[1761307084412,2.76798342,3946.2,3946.1,0.002]
[1761307084615,3.29817817,3946.2,3946.1,0.002]
[1761307084776,0.2339,3946.2,3946.1,0.002]
[1761307086392,0.1264,3946.2,3946.1,0.002]
[1761307086805,0.2339,3946.2,3946.1,0.002]
[1761307093106,0.1264,3946.2,3946.1,0.002]
[1761307094422,0.1264,3946.2,3946.1,2.53614763]
[1761307095705,0.1264,3946.2,3946.1,5.49417495]
[1761307095927,0.1264,3946.2,3946.1,2.96002732]
[1761307096941,0.1264,3946.2,3946.1,5.49417495]
[1761307098547,0.1264,3946.2,3946.1,2.53614763]
[1761307101651,0.1264,3946.2,3946.1,3.83154566]
[1761307102010,0.1264,3946.2,3946.1,3.38394566]
[1761307104167,0.1256,3946.2,3946.1,3.38394566]
[1761307107278,0.1256,3946.2,3946.1,2.53614763]
[1761307108190,0.2331,3946.2,3946.1,0.002]
[1761307108863,2.76718342,3946.2,3946.1,0.002]
[1761307111197,0.2331,3946.2,3946.1,0.002]
[1761307111360,0.50991411,3946.2,3946.1,0.002]
[1761307115196,0.40241411,3946.2,3946.1,0.002]
[1761307115376,0.1256,3946.2,3946.1,0.002]
[1761307116292,0.2331,3946.2,3946.1,0.002]
[1761307116996,0.1256,3946.2,3946.1,0.002]
[1761307122187,0.2331,3946.2,3946.1,0.002]
[1761307122385,5.99518342,3946.2,3946.1,0.002]
[1761307122590,7.14400315,3946.2,3946.1,0.002]
[1761307123107,7.24543061,3946.2,3946.1,0.002]
[1761307128292,7.24463061,3946.2,3946.1,0.002]
[1761307132415,7.24563061,3946.2,3946.1,0.002]
[1761307133520,9.21654548,3946.2,3946.1,0.002]
[1761307133820,9.89140869,3946.2,3946.1,0.002]
[1761307134181,9.21654548,3946.2,3946.1,0.002]
[1761307141016,7.01233061,3946.2,3946.1,0.002]
[1761307141214,5.76208342,3946.2,3946.1,0.002]
[1761307141721,5.86958342,3946.2,3946.1,0.002]
[1761307142232,5.76208342,3946.2,3946.1,0.002]
[1761307143537,5.88848342,3946.2,3946.1,0.002]
[1761307144694,6.89477042,3946.2,3946.1,0.002]
[1761307144936,6.78727042,3946.2,3946.1,0.002]
[1761307145232,6.89477042,3946.2,3946.1,0.002]
[1761307145525,6.99619942,3946.2,3946.1,0.002]
[1761307146507,6.89477042,3946.2,3946.1,0.002]
[1761307147455,6.78727042,3946.2,3946.1,0.002]
[1761307147749,6.89477042,3946.2,3946.1,0.002]
[1761307148114,6.78727042,3946.2,3946.1,0.002]
[1761307149141,6.89477042,3946.2,3946.1,0.002]
[1761307152146,6.89397042,3946.2,3946.1,0.002]
[1761307153230,6.78647042,3946.2,3946.1,0.002]
[1761307157465,6.78647042,3946.2,3946.1,0.4569]
[1761307157466,5.88748342,3946.2,3946.1,0.4569]
[1761307157661,0.1274,3946.2,3946.1,0.4569]
[1761307159864,0.1274,3946.2,3946.1,0.002]
[1761307160232,0.1274,3946.2,3946.1,0.4569]
[1761307165774,0.1274,3946.2,3946.1,0.002]
[1761307166680,0.1274,3946.2,3946.1,0.4569]
[1761307175089,0.1274,3946.2,3946.1,0.002]
[1761307175404,0.1274,3946.2,3946.1,0.4593]
[1761307176280,0.1266,3946.2,3946.1,0.4593]
[1761307178276,0.1266,3946.2,3946.1,0.002]
[1761307178892,0.1266,3946.2,3946.1,0.4593]
[1761307180616,0.1266,3946.2,3946.1,2.99344763]
[1761307180911,0.1266,3946.2,3946.1,3.5489491]
[1761307181586,0.1266,3946.2,3946.1,7.09973742]
[1761307182187,0.1266,3946.2,3946.1,3.5489491]
[1761307188790,0.1266,3946.2,3946.1,2.99344763]
[1761307200117,0.1258,3946.2,3946.1,2.99344763]
[1761307201358,0.001,3946.3,3946.2,2.53408342]
[1761307201558,0.001,3946.3,3946.2,2.97698342]
[1761307201859,0.001,3946.3,3946.2,4.53218342]
[1761307202148,0.001,3946.3,3946.2,6.49337772]
[1761307202558,0.001,3946.3,3946.2,5.41719772]
[1761307202730,0.001,3946.3,3946.2,3.86199772]
[1761307202932,0.001,3946.3,3946.2,2.53408342]
[1761307203132,0.001,3946.3,3946.2,2.97698342]
[1761307203732,0.001,3946.3,3946.2,4.53218342]
[1761307203937,0.001,3946.3,3946.2,2.53408342]
[1761307204352,0.001,3946.3,3946.2,2.97698342]
[1761307204558,0.001,3946.3,3946.2,3.54018512]
[1761307209194,0.001,3946.3,3946.2,5.09538512]
[1761307209591,0.001,3946.6,3946.2,5.09538512]
[1761307209592,0.001,3946.6,3946.5,2.53389078]
[1761307209890,0.001,3946.6,3946.5,7.6398791]
[1761307210073,0.001,3946.6,3946.5,8.0827791]
[1761307210271,0.001,3946.6,3946.5,9.70765414]
[1761307210588,0.001,3947.0,3946.9,4.08883399]
[1761307210794,0.001,3947.0,3946.9,8.08252231]
[1761307211350,0.001,3947.0,3946.9,8.19942231]
[1761307211675,0.001,3947.0,3946.9,8.70630231]
[1761307211853,0.001,3947.0,3946.9,9.83030388]
[1761307212572,0.001,3947.0,3946.9,9.95670388]
[1761307218660,0.001,3947.8,3947.3,3.26665724]
[1761307218892,0.001,3947.8,3947.7,7.54900652]
[1761307219099,0.001,3947.8,3947.7,7.16852652]
[1761307219389,0.001,3947.8,3947.7,8.95308908]
[1761307219601,0.001,3947.8,3947.7,8.38378908]
[1761307219784,0.001,3947.8,3947.7,8.05658908]
[1761307220083,0.001,3947.8,3947.7,8.49948908]
[1761307221186,0.001,3947.8,3947.7,11.96017505]
[1761307221353,0.001,3947.8,3947.7,12.18107505]
[1761307221794,0.001,3947.8,3947.7,9.22726908]
[1761307222199,0.001,3947.8,3947.7,12.18107505]
[1761307224255,0.0002,3947.8,3947.7,9.22726908]
[1761307225183,0.0002,3947.8,3947.7,9.00636908]
[1761307226616,0.0002,3947.8,3947.7,8.49948908]
[1761307227383,0.0002,3947.8,3947.7,8.56346908]
[1761307227679,0.0002,3947.8,3947.7,8.05658908]
[1761307227998,0.1099,3947.8,3947.7,2.53312055]
[1761307228199,0.1099,3947.8,3947.7,5.48692652]
[1761307228423,0.0002,3947.8,3947.7,5.48692652]
[1761307229685,0.1266,3947.8,3947.7,5.48692652]
[1761307231218,0.1266,3947.8,3947.1,0.1264]
[1761307231219,0.2256,3947.8,3947.1,0.1264]
[1761307231421,0.2256,3947.8,3946.8,2.53368231]
[1761307231422,0.1264,3947.2,3946.8,2.53368231]
[1761307231608,0.2196,3946.9,3946.8,2.5336945]
[1761307231917,0.2196,3946.9,3946.8,2.53369818]
[1761307231918,0.4462,3946.9,3946.8,2.53369818]
[1761307233027,0.346,3946.9,3946.8,2.53369818]
[1761307233388,0.4462,3946.9,3946.8,2.53369818]
[1761307233820,0.346,3946.9,3946.8,2.53369818]
[1761307234711,0.4462,3946.9,3946.8,2.53369818]
[1761307235926,0.4462,3946.9,3946.6,0.002]
[1761307236125,0.2196,3946.9,3946.8,2.53369818]
[1761307236530,0.346,3946.9,3946.8,2.53369818]
[1761307236710,0.4462,3946.9,3946.8,2.53369818]
[1761307237643,0.1264,3946.9,3946.8,2.53369818]
[1761307239134,0.0002,3947.8,3946.9,2.53363399]
[1761307239135,0.1264,3947.0,3946.9,2.53363399]
[1761307242642,0.0002,3947.8,3947.7,2.53312055]
[1761307242830,0.1266,3947.8,3947.7,2.53312055]
[1761307243035,0.228,3947.8,3947.7,2.53312055]
[1761307244340,0.1266,3947.8,3947.7,2.53312055]
[1761307244758,0.1266,3947.8,3947.7,3.33513303]
[1761307248154,0.1258,3947.8,3947.7,3.33513303]
[1761307248648,0.1258,3947.8,3947.7,3.36046423]
[1761307248863,0.1258,3947.8,3947.7,3.33513303]
[1761307251556,0.1258,3947.8,3947.7,4.89033303]
[1761307251733,0.1258,3947.8,3947.7,4.91566423]
[1761307251929,0.1026,3948.2,3948.1,2.5328639]
[1761307252134,0.1026,3948.2,3948.1,4.0880639]
[1761307252457,0.229,3948.2,3948.1,4.0880639]
[1761307252654,0.1274,3948.2,3948.1,7.04186987]
[1761307252837,0.001,3948.2,3948.1,5.04554495]
[1761307258162,0.001,3948.2,3948.1,5.50824495]
[1761307259470,0.001,3948.2,3948.1,5.04554495]
[1761307261482,0.1026,3948.2,3948.1,2.5328639]
[1761307262144,0.001,3948.2,3948.1,5.48666987]
[1761307262977,0.1274,3948.2,3948.1,5.48666987]
[1761307264503,0.001,3948.2,3948.1,7.51476987]
[1761307267097,0.001,3948.2,3948.1,8.14804987]
[1761307267397,0.001,3948.2,3948.1,9.51152952]
[1761307269568,0.001,3948.6,3948.5,3.03948731]
[1761307269891,0.001,3948.6,3948.5,5.99329328]
[1761307270209,0.001,3948.6,3948.5,6.59259328]
[1761307272204,0.0002,3948.6,3948.5,6.59259328]
[1761307272404,0.0002,3948.6,3948.5,7.79670838]
[1761307274099,0.0002,3948.6,3948.5,7.32380838]
[1761307274602,0.0002,3948.6,3948.5,7.79670838]
[1761307275005,5.48494742,3950.8,3948.5,7.79670838]
[1761307275006,0.2193,3951.7,3949.3,1.7816]
[1761307275222,0.1264,3950.6,3950.5,2.53132514]
[1761307275374,0.2258,3950.6,3950.5,2.53132514]
[1761307276392,0.1264,3950.6,3950.5,5.48513111]
[1761307276592,0.1381,3950.9,3950.5,5.48513111]
[1761307276593,0.3639,3950.9,3950.8,2.53113293]
[1761307276784,0.1264,3950.9,3950.8,2.53113293]
[1761307276983,0.1264,3950.9,3950.8,5.4849389]
[1761307277392,0.099,3951.2,3951.1,2.53094075]
[1761307277594,0.1264,3951.2,3951.1,5.48474672]
[1761307278380,0.1264,3951.2,3951.1,2.53094075]
[1761307280283,0.2254,3951.2,3951.1,2.53094075]
[1761307282594,0.1264,3951.2,3951.1,2.53094075]
[1761307282804,0.2254,3951.2,3951.1,2.53094075]
[1761307284512,0.1264,3951.2,3951.1,2.53094075]
[1761307285017,0.2254,3951.2,3951.1,2.53094075]
[1761307286114,0.2254,3951.2,3950.7,2.53115107]
[1761307286315,2.74985775,3951.7,3950.0,2.53164556]
[1761307286316,0.1264,3950.1,3950.0,2.53164556]
[1761307286820,0.1264,3950.1,3950.0,4.08684556]
[1761307287112,0.3625,3950.1,3950.0,2.53164556]
[1761307287314,0.1264,3950.1,3950.0,2.53164556]
[1761307288525,0.2254,3950.1,3950.0,2.53164556]
[1761307288695,0.2254,3950.1,3949.7,2.53179294]
[1761307289017,0.1385,3950.2,3949.7,2.53179294]
[1761307289018,0.1264,3949.9,3949.7,2.53179163]
[1761307289237,0.099,3950.0,3949.4,2.53403018]
[1761307289238,0.2162,3949.5,3949.4,2.53403018]
[1761307289714,0.3164,3949.5,3949.4,2.53403018]
[1761307290315,0.1385,3950.2,3949.4,0.002]
[1761307290497,0.4527,3950.2,3949.8,2.53170971]
[1761307290695,0.3142,3950.1,3949.9,2.53169481]
[1761307291019,2.53114898,3950.8,3949.4,0.002]
[1761307291020,0.099,3951.0,3949.8,3.54020547]
[1761307291200,0.2375,3950.7,3950.3,2.5314106]
[1761307291718,0.0994,3950.6,3950.4,2.53135324]
[1761307292691,0.0994,3950.6,3950.0,2.53158846]
[1761307292987,0.0994,3950.6,3950.5,2.53132514]
[1761307293316,1.5562,3951.2,3950.6,2.53126107]
[1761307293518,1.5562,3951.2,3950.2,0.2347]
[1761307293519,0.4087028,3951.1,3950.2,0.2347]
[1761307293820,0.001,3951.2,3951.0,2.5310048]
[1761307294021,0.099,3951.1,3950.2,0.2347]
[1761307294220,0.099,3951.1,3950.1,2.53157082]
[1761307294383,0.099,3951.1,3950.8,2.53108858]
[1761307294584,0.1381,3950.9,3950.8,2.53108858]
[1761307295022,0.2375,3950.9,3950.8,2.53108858]
[1761307295220,0.2375,3950.9,3949.4,1.5572]
[1761307295519,0.0994,3950.8,3950.7,2.53119504]
[1761307296202,0.0986,3950.8,3950.7,2.53119504]
[1761307296892,0.0986,3950.8,3950.4,2.53136374]
[1761307297087,0.0986,3950.8,3950.7,2.531197]
[1761307297288,0.0986,3950.8,3949.9,2.53164658]
[1761307297693,0.0986,3950.8,3949.6,1.5552]
[1761307298118,0.44397,3950.8,3950.6,2.53120936]
[1761307298317,0.44397,3950.8,3950.5,2.5313152]
[1761307298530,0.0986,3950.7,3949.7,2.53182542]
[1761307298837,0.2162,3949.8,3949.7,2.53179247]
[1761307299310,0.3426,3949.8,3949.7,2.53179247]
[1761307299626,0.1264,3949.8,3949.7,2.53179247]
[1761307300200,0.1381,3950.9,3949.1,0.2347]
[1761307300201,0.1009,3950.4,3950.2,2.53150373]
[1761307300400,2.66919154,3950.9,3949.1,0.2347]
[1761307300401,0.1021,3950.8,3950.3,2.53139998]
[1761307300732,3.3231,3950.7,3950.3,2.53141033]
[1761307301027,3.3231,3950.7,3949.5,0.4476]
[1761307301028,0.34612,3950.6,3949.5,2.53196607]
[1761307301187,0.44822,3950.6,3950.2,2.53148031]
[1761307301392,0.44822,3950.6,3949.4,0.002]
[1761307301393,0.1021,3950.5,3949.4,0.002]
[1761307301744,0.1021,3950.5,3950.1,2.53152521]
[1761307302022,0.1021,3950.5,3950.1,2.53152761]
[1761307302222,0.68792525,3950.5,3950.1,2.53152761]
[1761307302521,0.68792525,3950.5,3949.5,2.53196607]
[1761307302522,0.68792525,3950.5,3950.2,2.53148772]
[1761307302822,0.58582525,3950.5,3949.7,2.53182918]
[1761307303025,3.224,3950.7,3950.3,2.53144491]
[1761307303525,0.1021,3950.6,3950.3,2.53144491]
[1761307303823,3.223,3950.8,3950.0,2.53164556]
[1761307304119,0.1381,3950.9,3950.5,2.53131045]
[1761307304621,0.1021,3950.8,3950.5,2.53132514]
[1761307304804,0.1021,3950.8,3950.1,0.2347]
[1761307305004,0.1021,3950.8,3950.7,2.531197]
[1761307305906,0.1381,3950.9,3950.7,2.531197]
[1761307306136,3.224,3951.0,3950.8,2.53112752]
[1761307306294,0.34638,3950.9,3950.7,2.53117269]
[1761307306692,0.44538,3950.9,3950.7,2.53117269]
[1761307306896,0.58608,3950.9,3950.7,2.53117269]
[1761307307427,0.58608,3950.9,3950.8,2.53113293]
[1761307307607,0.34638,3950.9,3950.8,2.53113293]
[1761307307923,3.222,3951.0,3950.8,2.53113293]
[1761307308349,0.0998,3951.1,3950.3,2.5314533]
[1761307308495,0.001,3951.2,3951.1,2.53094075]
[1761307308896,0.1008,3951.2,3951.0,2.53094776]
[1761307309119,0.1008,3951.2,3951.1,2.53094075]
[1761307309839,0.1008,3951.2,3950.2,2.53150246]
[1761307309840,0.001,3951.2,3950.2,2.53150246]
[1761307309994,0.43308,3951.2,3950.9,2.53105363]
[1761307310193,0.43308,3951.2,3950.7,2.53118554]
[1761307310394,0.1264,3950.5,3950.4,2.53138922]
[1761307311049,0.1264,3950.5,3950.4,2.97898922]
[1761307311324,0.1264,3950.5,3950.4,2.53138922]
[1761307313534,0.1264,3950.5,3950.4,2.97898922]
[1761307316729,0.1264,3950.5,3950.4,2.53138922]
[1761307320240,0.1256,3950.5,3950.4,2.53138922]
[1761307321114,0.227,3950.5,3950.4,2.53138922]
[1761307321310,0.1256,3950.5,3950.4,2.53138922]
[1761307323973,0.227,3950.5,3949.6,0.002]
[1761307324148,3.216,3950.4,3949.6,0.002]
[1761307324346,0.5848708,3950.3,3950.0,2.53162014]
[1761307324546,3.3185,3950.3,3950.0,2.53162014]
[1761307324723,0.1264,3950.1,3950.0,2.53162014]
[1761307325348,0.1264,3950.1,3950.0,2.98632014]
[1761307325642,0.1264,3950.1,3950.0,2.53162014]
[1761307329854,0.1264,3950.1,3950.0,2.98632014]
[1761307330552,0.1264,3950.1,3950.0,2.53162014]
[1761307330750,0.1264,3950.1,3950.0,2.98632014]
[1761307331534,0.1264,3950.1,3950.0,2.53162014]
[1761307331743,0.1264,3950.1,3950.0,2.98632014]
[1761307332050,0.1264,3950.1,3950.0,3.89222605]
[1761307334151,0.1264,3950.1,3950.0,3.43752605]
[1761307334349,0.1264,3950.1,3950.0,3.89222605]
[1761307335180,0.1264,3950.1,3950.0,3.43752605]
[1761307335679,0.1264,3950.1,3950.0,3.89222605]
[1761307336744,0.1264,3950.1,3950.0,3.43752605]
[1761307337577,0.1264,3950.1,3950.0,3.89222605]
[1761307337756,0.1264,3950.1,3950.0,3.43752605]
[1761307339170,0.1264,3950.1,3950.0,3.89222605]
[1761307339754,0.1264,3950.1,3950.0,3.43752605]
[1761307340645,0.1264,3950.1,3950.0,6.38903923]
[1761307341248,0.1264,3950.1,3950.0,6.84373923]
[1761307343283,0.001,3950.8,3950.7,2.531197]
[1761307343696,0.2306,3950.8,3950.7,2.531197]
[1761307344254,0.2298,3950.8,3950.7,2.531197]
[1761307345492,0.1266,3950.8,3950.7,2.531197]
[1761307345690,0.2298,3950.8,3950.7,2.531197]
[1761307346272,0.1266,3950.8,3950.7,2.531197]
[1761307350411,0.1266,3950.8,3950.7,3.3759955]
[1761307350596,2.23214822,3952.2,3950.7,3.3759955]
[1761307350597,0.1264,3951.3,3951.2,2.53087669]
[1761307350794,0.1264,3951.3,3951.2,5.48238987]
[1761307351104,0.1264,3951.3,3951.2,5.95698987]
[1761307351313,0.1264,3951.3,3951.2,6.82932453]
[1761307352314,0.099,3952.2,3951.2,4.70585379]
[1761307352609,0.099,3952.2,3951.8,2.95151318]
[1761307352983,0.099,3952.2,3952.1,2.53030034]
[1761307353478,0.2232,3952.3,3952.2,2.53023632]
[1761307353679,2.5297288,3953.0,3952.1,2.53030034]
[1761307353680,0.2128,3953.2,3952.1,5.48181352]
[1761307353887,0.32,3952.7,3952.6,2.52993445]
[1761307354099,0.50752,3952.7,3952.6,2.52993445]
[1761307354291,0.63392,3952.7,3952.5,2.53003619]
[1761307354603,0.2232,3952.8,3952.4,5.4816026]
[1761307354804,0.2232,3952.8,3951.7,2.53050731]
[1761307354805,0.1264,3952.5,3952.3,2.530154]
[1761307355004,0.099,3952.6,3952.3,2.530154]
[1761307355213,0.1264,3952.4,3952.3,2.530154]
[1761307358388,1.03298276,3954.2,3953.2,2.52959068]
[1761307358389,0.1374,3954.2,3953.2,2.52959068]
[1761307358723,0.4703,3953.5,3953.2,2.52959068]
[1761307358935,0.4703,3953.5,3953.3,2.52951361]
[1761307359422,0.4703,3953.5,3952.6,3.00443293]
[1761307359423,0.4703,3953.5,3952.6,2.95151318]
[1761307359620,0.4703,3953.5,3953.1,2.5296141]
[1761307359915,0.4703,3953.5,3952.2,4.50671318]
[1761307360103,0.62166596,3953.4,3952.8,2.52980449]
[1761307360310,0.62166596,3953.4,3952.9,2.52978118]
[1761307360619,0.4726,3953.3,3952.9,2.52978118]
[1761307360919,0.4726,3953.3,3952.8,2.52984037]
[1761307361215,0.3021,3953.2,3952.8,2.52984037]
[1761307361416,0.3021,3953.2,3952.5,2.53002714]
[1761307361417,0.3021,3953.2,3952.7,2.52990251]
[1761307361796,0.3021,3953.2,3952.8,2.52985099]
[1761307362118,0.3021,3953.2,3952.2,4.50671318]
[1761307362119,0.3021,3953.2,3952.7,2.52989635]
[1761307362714,0.36840374,3953.1,3952.8,2.52984978]
[1761307362921,0.3021,3953.2,3952.8,2.52984978]
[1761307363128,0.2052,3952.9,3952.8,2.52984978]
[1761307363482,0.3042,3952.9,3952.8,2.52984978]
[1761307365091,0.2052,3952.9,3952.8,2.52984978]
[1761307365390,0.3042,3952.9,3952.8,2.52984978]
[1761307366310,0.2052,3952.9,3952.8,2.52984978]
[1761307366520,0.3042,3952.9,3952.3,2.53011989]
[1761307366832,0.3042,3952.9,3951.8,2.95151318]
[1761307366833,0.099,3952.8,3951.8,2.95151318]
[1761307366991,0.28339663,3952.7,3952.1,2.53026825]
[1761307367322,0.099,3952.8,3952.2,2.53023632]
[1761307367625,0.099,3952.8,3952.6,2.52993065]
[1761307367787,0.099,3952.8,3951.9,0.4745]
[1761307367995,0.099,3952.8,3952.4,2.53005265]
[1761307368195,0.0982,3952.8,3951.6,3.42601318]
[1761307368396,0.1264,3951.9,3951.8,2.53049243]
[1761307368902,0.1264,3951.9,3951.8,3.00499243]
[1761307370405,0.1264,3951.9,3951.8,2.53049243]
[1761307371613,0.1264,3951.9,3951.8,3.00499243]
[1761307374029,0.1264,3951.9,3951.8,2.53049243]
[1761307374232,0.3034,3952.6,3952.4,2.5300997]
[1761307375216,0.3034,3952.6,3952.5,2.53004427]
[1761307375730,0.3034,3952.6,3952.4,2.53008504]
[1761307376118,0.3034,3952.6,3952.5,2.53004427]
[1761307377302,0.3034,3952.6,3952.4,2.53009175]
[1761307377736,0.099,3952.5,3952.4,2.53009175]
[1761307378818,0.099,3952.5,3952.3,2.53015245]
[1761307379016,0.099,3952.5,3951.5,3.18371318]
[1761307379333,0.099,3952.5,3952.1,2.53029241]
[1761307379535,0.38233028,3952.5,3952.2,2.53022504]
[1761307379742,0.099,3952.5,3952.2,2.53022878]
[1761307380040,0.099,3952.4,3952.3,2.5301723]
[1761307380236,0.099,3952.4,3952.2,2.53021154]
[1761307381721,0.099,3952.4,3952.2,2.53022866]
[1761307382232,0.2044,3952.6,3952.3,2.5301723]
[1761307382432,0.2044,3952.6,3952.1,2.5302973]
[1761307382742,0.3034,3952.6,3952.3,2.53014601]
[1761307382942,0.099,3952.5,3951.8,0.002]
[1761307383142,0.2201,3951.9,3951.8,0.002]
[1761307383308,0.099,3952.5,3951.8,0.002]
[1761307383514,0.53905593,3952.4,3952.0,2.53035125]
[1761307383708,0.53905593,3952.4,3952.1,2.5302918]
[1761307383934,0.1002,3952.3,3952.0,2.53033874]
[1761307384345,0.1264,3952.1,3952.0,2.53033874]
[1761307385118,0.2266,3952.1,3951.9,2.53042068]
[1761307385319,0.1002,3952.1,3952.0,2.5303558]
[1761307385543,0.43885593,3952.4,3952.0,2.5303558]
[1761307385742,0.1264,3952.1,3952.0,2.5303558]
[1761307386452,0.2266,3952.1,3952.0,2.5303558]
[1761307386749,0.2266,3952.1,3951.9,2.53042554]
[1761307387044,0.47284443,3952.3,3952.0,2.53036437]
[1761307387455,0.1264,3952.1,3952.0,2.53036437]
[1761307387948,0.2278,3952.1,3952.0,2.53036437]
[1761307389140,0.1264,3952.1,3952.0,2.53036437]
[1761307389542,0.1264,3952.1,3952.0,5.48187755]
[1761307389745,0.67642804,3953.2,3952.0,4.22235017]
[1761307389746,3.5177,3953.1,3952.0,4.22235017]
[1761307389943,0.1264,3952.3,3952.2,2.53023632]
[1761307390142,0.1264,3952.3,3952.2,2.99963632]
[1761307391152,0.1264,3952.3,3952.2,5.9511495]
[1761307391343,0.1264,3952.3,3952.2,6.95482764]
[1761307391662,0.001,3953.2,3953.1,2.52966026]
[1761307391857,0.001,3953.2,3953.1,2.76486026]
[1761307392020,0.1274,3953.2,3953.1,6.18577344]
[1761307392226,0.1266,3953.2,3953.1,6.18577344]
[1761307394331,0.0002,3953.2,3953.1,7.09806522]
[1761307395339,0.0002,3953.2,3953.1,7.22446522]
[1761307396665,0.0002,3953.2,3953.1,2.52966026]
[1761307396874,0.1266,3953.2,3953.1,2.52966026]
[1761307398231,0.1266,3953.2,3953.1,2.99906026]
[1761307402332,0.1266,3953.2,3953.1,2.52966026]
[1761307402578,0.1266,3953.2,3953.1,2.96186026]
[1761307403294,0.1266,3953.2,3953.1,2.52966026]
[1761307403802,0.1266,3953.2,3953.1,2.96186026]